bitfinex/quotes_BTCUSD_20260104
["timestamp","ask_amount","ask_price","bid_price","bid_amount"]
[1767512581921,0.0657638,91448.0,91443.0,0.04902614]
[1767512582134,0.05482834,91448.0,91445.0,0.07089355]
[1767512582332,0.01093577,91443.0,91440.0,0.04902614]
[1767512582512,0.06561511,91443.0,91439.0,0.05468115]
[1767512582873,0.00106611,91440.0,91437.0,0.04902614]
[1767512583073,6.711e-05,91440.0,91438.0,0.04902614]
[1767512583508,6.711e-05,91440.0,91438.0,0.10370782]
[1767512583851,6.711e-05,91440.0,91438.0,0.10270882]
[1767512584034,6.711e-05,91440.0,91437.0,0.05996263]
[1767512584250,6.711e-05,91440.0,91438.0,0.1037079]
[1767512584451,1.1e-07,91440.0,91439.0,0.05468126]
[1767512585728,1.1e-07,91440.0,91439.0,0.0543959]
[1767512588632,1.1e-07,91440.0,91439.0,0.10342204]
[1767512590300,1.1e-07,91440.0,91439.0,0.10335504]
[1767512590926,1.1e-07,91440.0,91437.0,0.06561888]
[1767512591133,1.1e-07,91440.0,91439.0,0.05468126]
[1767512591531,1.1e-07,91440.0,91438.0,0.05468175]
[1767512591800,1.1e-07,91440.0,91439.0,0.05468126]
[1767512592947,1.1e-07,91440.0,91439.0,0.0543959]
[1767512593360,1.1e-07,91440.0,91438.0,0.05468175]
[1767512593531,1.1e-07,91440.0,91439.0,0.05468126]
[1767512593731,0.05468126,91440.0,91437.0,0.01093649]
[1767512594076,1.1e-07,91440.0,91439.0,0.05468126]
[1767512594448,1.1e-07,91440.0,91438.0,0.05468186]
[1767512594649,1.1e-07,91440.0,91439.0,0.05468126]
[1767512595286,0.0546809,91440.0,91437.0,0.06561871]
[1767512595485,1.1e-07,91440.0,91438.0,0.05468172]
[1767512596237,1.1e-07,91440.0,91439.0,0.05468126]
[1767512596896,0.01093708,91432.0,91425.0,0.12919365]
[1767512597094,0.05468652,91431.0,91428.0,0.05468729]
[1767512597324,0.01093673,91435.0,91428.0,6.712e-05]
[1767512597499,0.05468724,91429.0,91428.0,0.04909326]
[1767512597653,0.05468724,91429.0,91428.0,0.04799426]
[1767512598051,0.05468664,91430.0,91428.0,0.04799426]
[1767512598255,0.06557559,91431.0,91430.0,0.000999]
[1767512598758,0.05468685,91430.0,91428.0,0.04799426]
[1767512599001,0.06557559,91431.0,91428.0,0.1136191]
[1767512599201,0.06557559,91431.0,91430.0,0.01]
[1767512599442,0.05468724,91429.0,91428.0,0.04799426]
[1767512599606,0.05468668,91430.0,91429.0,0.00071362]
[1767512599808,0.05468668,91430.0,91428.0,0.04799426]
[1767512600013,0.06557555,91431.0,91428.0,0.05468777]
[1767512600397,0.06562402,91430.0,91427.0,0.0656256]
[1767512600833,0.06491002,91430.0,91427.0,0.0656256]
[1767512601781,0.24061238,91436.0,91427.0,0.0656256]
[1767512601782,0.01093661,91436.0,91434.0,0.05468415]
[1767512601950,0.06561906,91437.0,91434.0,0.00993785]
[1767512601951,0.02188,91437.0,91434.0,0.00993785]
[1767512602124,0.02188,91437.0,91436.0,0.05468305]
[1767512602693,0.15798063,91440.0,91439.0,0.05468126]
[1767512602997,0.02188011,91440.0,91439.0,0.05244785]
[1767512604556,0.02188011,91440.0,91438.0,0.05468186]
[1767512605153,0.02188011,91440.0,91439.0,0.05468126]
[1767512605561,0.02188011,91440.0,91438.0,0.05468186]
[1767512607126,0.02188011,91440.0,91439.0,0.05468126]
[1767512607263,0.02188011,91440.0,91439.0,0.05430582]
[1767512608404,0.02239192,91440.0,91438.0,0.05468186]
[1767512608637,0.02188011,91440.0,91438.0,0.05468186]
[1767512611161,0.02188011,91440.0,91438.0,0.0546818]
[1767512611360,0.02188011,91440.0,91439.0,0.05468126]
[1767512611634,1.1e-07,91440.0,91439.0,0.10371665]
[1767512611863,0.01093565,91444.0,91441.0,0.04903539]
[1767512612052,0.02188,91442.0,91441.0,0.04903539]
[1767512612208,0.02188,91443.0,91440.0,0.0656163]
[1767512612542,0.02188,91443.0,91441.0,0.05467997]
[1767512612953,0.02188,91443.0,91442.0,0.05467946]
[1767512613156,0.02188,91443.0,91441.0,0.05467997]
[1767512613907,0.02188,91443.0,91441.0,0.05439462]
[1767512614108,0.00052138,91442.0,91441.0,0.05439462]
[1767512615024,0.00052138,91442.0,91441.0,0.04938206]
[1767512615423,0.06560749,91453.0,91446.0,0.01093541]
[1767512615647,0.06560749,91453.0,91449.0,0.04938206]
[1767512615822,0.06560825,91452.0,91449.0,0.04938206]
[1767512616026,0.01093481,91451.0,91446.0,0.06031747]
[1767512616233,0.06560941,91451.0,91447.0,0.04938206]
[1767512616436,0.06560983,91450.0,91447.0,0.04938206]
[1767512616625,0.05467572,91449.0,91447.0,0.04938206]
[1767512616827,0.05467588,91448.0,91447.0,0.04938206]
[1767512617675,0.01093529,91447.0,91444.0,0.04938206]
[1767512617834,0.05467714,91446.0,91444.0,0.04938206]
[1767512618222,0.01093529,91447.0,91440.0,0.06561634]
[1767512618223,0.01093553,91445.0,91440.0,0.06561634]
[1767512618421,0.06561429,91445.0,91440.0,0.06561634]
[1767512618626,0.06561357,91446.0,91442.0,0.05467916]
[1767512618828,0.06561329,91445.0,91441.0,0.06561593]
[1767512619483,0.01093565,91444.0,91438.0,0.01093637]
[1767512619662,0.01093565,91444.0,91437.0,0.00048307]
[1767512620216,0.01093565,91444.0,91439.0,0.05468072]
[1767512620377,0.06561438,91444.0,91439.0,0.05468072]
[1767512620582,0.06561481,91443.0,91439.0,0.05468072]
[1767512620899,0.06561538,91442.0,91438.0,0.01093637]
[1767512621202,0.06561538,91442.0,91438.0,0.01065101]
[1767512621493,0.06561481,91443.0,91438.0,0.06533271]
[1767512621707,0.06561481,91443.0,91439.0,0.01093625]
[1767512622482,0.06561549,91442.0,91438.0,0.06533271]
[1767512623067,0.06561662,91441.0,91437.0,0.01141956]
[1767512623280,0.06561662,91441.0,91437.0,0.06610158]
[1767512623482,0.06561662,91441.0,91437.0,0.11548364]
[1767512623674,0.06561477,91443.0,91439.0,0.06561751]
[1767512624539,0.06561477,91443.0,91438.0,0.0656182]
[1767512624687,0.01093589,91442.0,91438.0,0.0656182]
[1767512624885,0.06561544,91442.0,91438.0,0.0656182]
[1767512625282,0.02188,91444.0,91440.0,0.0546805]
[1767512625503,0.01093577,91443.0,91440.0,0.04938206]
[1767512625884,0.06461564,91443.0,91440.0,0.04938206]
[1767512626081,0.05467956,91442.0,91440.0,0.04938206]
[1767512626287,0.05467956,91442.0,91438.0,0.11499969]
[1767512626504,0.05467956,91442.0,91439.0,0.04938206]
[1767512626908,0.05467921,91443.0,91439.0,0.06031831]
[1767512627205,0.02188,91444.0,91439.0,0.06031831]
[1767512627415,0.03281565,91444.0,91440.0,0.01093613]
[1767512627619,0.03281565,91444.0,91440.0,0.0656164]
[1767512628115,0.02188,91444.0,91441.0,0.01093601]
[1767512628321,0.02188,91444.0,91442.0,0.05467945]
[1767512628720,0.02188,91444.0,91441.0,0.06561557]
[1767512628924,0.000999,91442.0,91441.0,0.06561557]
[1767512629241,0.03281565,91444.0,91441.0,0.06561557]
[1767512629534,0.02188,91444.0,91441.0,0.06561557]
[1767512629936,0.000999,91441.0,91440.0,0.11499883]
[1767512630299,0.02188,91444.0,91440.0,0.11499883]
[1767512630502,0.02188,91444.0,91441.0,0.01093601]
[1767512630908,0.02188,91444.0,91441.0,0.06561604]
[1767512631104,0.02188,91444.0,91442.0,0.05467943]
[1767512631314,0.02188,91444.0,91442.0,0.05368043]
[1767512631514,0.02188,91444.0,91441.0,0.06561604]
[1767512632279,0.02188,91444.0,91442.0,0.05467942]
[1767512632481,0.02188,91444.0,91441.0,0.06561604]
[1767512632684,0.020881,91444.0,91441.0,0.06561564]
[1767512633022,0.020881,91444.0,91439.0,0.01093625]
[1767512633429,0.06561506,91443.0,91439.0,0.01093625]
[1767512633631,0.01093589,91442.0,91438.0,0.06561804]
[1767512634015,0.08649493,91444.0,91440.0,0.01093613]
[1767512634341,0.020881,91444.0,91440.0,0.00965178]
[1767512634546,0.020881,91444.0,91441.0,0.05467998]
[1767512634730,0.020881,91444.0,91440.0,0.06433201]
[1767512634948,0.08649505,91444.0,91440.0,0.06433201]
[1767512635281,0.01093577,91443.0,91439.0,0.05468125]
[1767512635583,0.0656149,91443.0,91439.0,0.0546808]
[1767512635882,0.06561555,91442.0,91438.0,0.06561818]
[1767512636548,0.06561557,91442.0,91438.0,0.06561818]
[1767512636747,0.06561557,91442.0,91439.0,0.04938206]
[1767512638514,0.05468006,91441.0,91439.0,0.04938206]
[1767512638913,0.06561536,91442.0,91439.0,0.04938206]
[1767512639464,0.05468024,91441.0,91439.0,0.04938206]
[1767512640061,0.06561536,91442.0,91439.0,0.04938206]
[1767512640429,0.06561538,91442.0,91439.0,0.0490967]
[1767512640670,0.01093589,91442.0,91440.0,0.04743436]
[1767512641006,0.06561466,91443.0,91440.0,0.04743436]
[1767512641734,0.05467951,91442.0,91440.0,0.04743436]
[1767512642298,0.08649532,91444.0,91440.0,0.04743436]
[1767512642547,0.06561491,91443.0,91440.0,0.04743436]
[1767512643287,0.05468006,91441.0,91440.0,0.04743436]
[1767512645243,0.01093577,91443.0,91441.0,0.000999]
[1767512645400,0.01093577,91443.0,91441.0,0.010999]
[1767512645594,0.08749395,91444.0,91441.0,0.01]
[1767512645844,0.04607534,91443.0,91439.0,0.06561709]
[1767512646024,0.04607534,91443.0,91440.0,0.04097749]
[1767512646246,0.04507634,91443.0,91440.0,0.04097749]
[1767512646450,0.04507634,91443.0,91439.0,0.01561709]
[1767512646830,0.04507634,91443.0,91440.0,0.01093613]
[1767512647653,0.08749395,91444.0,91440.0,0.01093613]
[1767512647848,0.08749395,91444.0,91440.0,0.05837049]
[1767512648050,0.06561479,91443.0,91440.0,0.04743436]
[1767512648284,0.05310874,91444.0,91440.0,0.04743436]
[1767512649004,0.01093577,91443.0,91439.0,0.02655334]
[1767512649382,0.05310874,91444.0,91440.0,0.01093613]
[1767512649383,0.01093565,91444.0,91440.0,0.01093613]
[1767512649736,0.01561395,91444.0,91440.0,0.06561635]
[1767512649935,0.01093565,91444.0,91441.0,0.06561598]
[1767512650554,0.08749324,91445.0,91441.0,0.06561598]
[1767512651090,0.08749324,91445.0,91440.0,0.02755136]
[1767512651292,0.08749324,91445.0,91441.0,0.05467997]
[1767512651900,0.08749324,91445.0,91441.0,0.06561598]
[1767512652098,0.0765577,91445.0,91443.0,0.04743436]
[1767512652394,0.0765577,91445.0,91442.0,0.01093589]
[1767512652762,0.08749323,91445.0,91442.0,0.01093589]
[1767512652961,0.08749323,91445.0,91441.0,0.06561563]
[1767512653858,0.0874932,91445.0,91441.0,0.06561563]
[1767512654059,0.06561261,91446.0,91445.0,0.04743436]
[1767512654264,0.06561261,91446.0,91445.0,0.04643536]
[1767512654716,0.06561261,91446.0,91443.0,0.04743436]
[1767512655060,0.05467779,91445.0,91443.0,0.04743436]
[1767512657835,0.02188,91447.0,91445.0,0.04743436]
[1767512658144,0.07461442,91445.0,91441.0,0.01093601]
[1767512658307,0.07461442,91445.0,91441.0,0.05837037]
[1767512658508,0.06367881,91445.0,91441.0,0.11304999]
[1767512659596,0.06561248,91446.0,91442.0,0.05467944]
[1767512659799,0.01093553,91445.0,91442.0,0.05467944]
[1767512661439,0.06561327,91445.0,91441.0,0.11304999]
[1767512661933,0.06561248,91446.0,91442.0,0.06561531]
[1767512662137,0.03281529,91447.0,91443.0,0.05467881]
[1767512662538,0.03281529,91447.0,91443.0,0.06561458]
[1767512663277,0.08749201,91447.0,91443.0,0.06561458]
[1767512663574,0.03281529,91447.0,91444.0,0.0656138]
[1767512663757,0.08749212,91447.0,91443.0,0.06561458]
[1767512664280,0.08749212,91447.0,91443.0,0.06561445]
[1767512665685,0.02188,91447.0,91444.0,0.05467792]
[1767512665853,0.03281529,91447.0,91443.0,0.06561445]
[1767512666507,0.08749223,91447.0,91443.0,0.06561445]
[1767512667596,0.06561255,91446.0,91441.0,0.06561605]
[1767512667749,0.03281529,91447.0,91443.0,0.01093577]
[1767512667950,0.03281529,91447.0,91443.0,0.05837013]
[1767512668173,0.08749194,91447.0,91443.0,0.11304853]
[1767512669151,0.08749194,91447.0,91444.0,0.04743436]
[1767512669351,0.04607534,91446.0,91442.0,0.04741381]
[1767512669752,0.06561265,91446.0,91443.0,0.01093577]
[1767512670001,0.08749194,91447.0,91443.0,0.06561438]
[1767512671856,0.06561285,91446.0,91443.0,0.04952424]
[1767512672214,0.06552492,91446.0,91443.0,0.04952424]
[1767512672380,0.05467771,91445.0,91443.0,0.04952424]
[1767512672833,0.0874919,91447.0,91443.0,0.04952424]
[1767512673029,0.0874919,91447.0,91443.0,0.06046001]
[1767512673439,0.0874919,91447.0,91444.0,0.04766245]
[1767512674151,0.05467724,91446.0,91444.0,0.03104549]
[1767512674316,0.05467767,91445.0,91444.0,0.03104549]
[1767512675442,0.05458758,91445.0,91444.0,0.02204449]
[1767512676611,0.06561447,91444.0,91441.0,0.04766245]
[1767512677128,0.05467901,91443.0,91441.0,0.04766245]
[1767512677955,0.05467946,91442.0,91441.0,0.04766245]
[1767512678516,0.05441349,91442.0,91439.0,0.01093625]
[1767512678840,0.06561478,91443.0,91440.0,0.04766245]
[1767512679198,0.06561403,91444.0,91441.0,0.04766245]
[1767512679400,0.0546794,91443.0,91441.0,0.04766245]
[1767512679607,0.01093553,91445.0,91441.0,0.04766245]
[1767512679806,0.0546789,91443.0,91441.0,0.04766245]
[1767512680870,0.05467888,91443.0,91441.0,0.04766245]
[1767512681114,0.15790258,91470.0,91449.0,0.04766245]
[1767512681416,0.0109335,91462.0,91453.0,0.05859702]
[1767512681590,0.02188,91461.0,91455.0,0.01093433]
[1767512681786,0.02188,91460.0,91456.0,0.04766245]
[1767512681985,0.02188,91460.0,91456.0,0.05859666]
[1767512681986,0.02178,91460.0,91456.0,0.05859666]
[1767512682187,0.02178,91460.0,91455.0,0.06560565]
[1767512682385,0.01093398,91458.0,91453.0,0.06560728]
[1767512682587,0.02178,91460.0,91455.0,0.01093433]
[1767512682588,0.03271374,91460.0,91455.0,0.01093433]
[1767512682751,0.01093386,91459.0,91455.0,0.01093433]
[1767512683169,0.08738285,91460.0,91455.0,0.01093433]
[1767512683382,0.03271374,91460.0,91456.0,0.01093421]
[1767512683684,0.08738265,91460.0,91455.0,0.065606]
[1767512683906,0.02178,91460.0,91457.0,0.0109341]
[1767512684184,0.020781,91460.0,91457.0,0.0656045]
[1767512684591,0.020781,91460.0,91457.0,0.0109341]
[1767512684939,0.01093362,91461.0,91457.0,0.0109341]
[1767512685147,0.02188,91459.0,91457.0,0.0109341]
[1767512685371,0.02188,91459.0,91456.0,0.0656052]
[1767512685563,0.02188,91459.0,91456.0,0.06560528]
[1767512686144,0.02188,91459.0,91458.0,0.0546699]
[1767512686399,0.02188,91459.0,91456.0,0.01093421]
[1767512686545,0.000999,91458.0,91456.0,0.01093421]
[1767512686745,0.02188,91459.0,91456.0,0.01093421]
[1767512688127,0.02188,91459.0,91456.0,0.06560497]
[1767512688495,0.02188,91459.0,91456.0,0.01093421]
[1767512689646,0.02188,91459.0,91455.0,0.06560555]
[1767512690328,0.02188,91459.0,91456.0,0.06560522]
[1767512690694,0.02188,91459.0,91456.0,0.01093421]
[1767512691909,0.02188,91459.0,91456.0,0.06560524]
[1767512692308,0.02188,91459.0,91456.0,0.01093421]
[1767512692506,0.02188,91459.0,91456.0,0.06560529]
[1767512693331,0.02188,91459.0,91456.0,0.01093421]
[1767512693532,0.000999,91456.0,91455.0,0.05467169]
[1767512693734,0.02188,91459.0,91455.0,0.05467169]
[1767512693899,0.02188,91459.0,91456.0,0.06560474]
[1767512694496,0.02188,91459.0,91455.0,0.01093433]
[1767512694698,0.02188,91459.0,91422.0,0.43752976]
[1767512694896,0.01093421,91456.0,91449.0,0.01093505]
[1767512695138,0.01093421,91456.0,91449.0,0.06560985]
[1767512695346,0.06560439,91458.0,91452.0,0.05467328]
[1767512695547,0.01093398,91458.0,91453.0,0.01093457]
[1767512695750,0.06560469,91457.0,91452.0,0.06560797]
[1767512695988,0.0109341,91457.0,91453.0,0.01093457]
[1767512696447,0.06560498,91457.0,91452.0,0.06560797]
[1767512696649,0.06560498,91457.0,91452.0,0.06560813]
[1767512696830,0.06560541,91456.0,91452.0,0.01093469]
[1767512697008,0.06560541,91456.0,91451.0,0.06560772]
[1767512697413,0.06560541,91456.0,91451.0,0.01093481]
[1767512697620,0.06560484,91457.0,91452.0,0.06560817]
[1767512698488,0.06560484,91457.0,91452.0,0.06556313]
[1767512698885,0.01093421,91456.0,91451.0,0.01093481]
[1767512699618,0.06560534,91456.0,91451.0,0.06560866]
[1767512700385,0.01093421,91456.0,91452.0,0.06560811]
[1767512700600,0.06560556,91456.0,91451.0,0.06560866]
[1767512701007,0.01093505,91449.0,91445.0,0.01093553]
[1767512701179,0.02188,91448.0,91445.0,0.06561308]
[1767512701367,0.02198261,91448.0,91445.0,0.01093553]
[1767512701568,0.02198261,91448.0,91444.0,0.01093565]
[1767512701814,0.02198261,91448.0,91444.0,0.06561342]
[1767512702018,0.01093553,91445.0,91436.0,0.01093661]
[1767512702193,0.06561435,91445.0,91440.0,0.01093613]
[1767512702570,0.06561409,91444.0,91439.0,0.06561732]
[1767512702975,0.01093565,91444.0,91439.0,0.06561732]
[1767512703200,0.06561395,91444.0,91439.0,0.06561728]
[1767512703377,0.000999,91439.0,91437.0,0.00048307]
[1767512703596,0.02088101,91438.0,91437.0,0.00048307]
[1767512703835,0.01188001,91438.0,91437.0,0.00048307]
[1767512704789,0.04372,91443.0,91439.0,0.01093625]
[1767512704994,0.04372,91443.0,91440.0,0.01093613]
[1767512705727,0.02188,91442.0,91439.0,0.01093625]
[1767512705936,0.01299984,91442.0,91438.0,0.0656182]
[1767512706538,0.01299984,91442.0,91439.0,0.06561738]
[1767512707225,0.00478464,91442.0,91439.0,0.01093625]
[1767512707695,0.00478464,91442.0,91440.0,0.05468025]
[1767512709398,0.00138889,91442.0,91441.0,0.05468006]
[1767512711882,0.00138889,91442.0,91441.0,0.05368106]
[1767512712822,0.00138889,91442.0,91440.0,0.05468025]
[1767512712988,0.00138889,91442.0,91441.0,0.05468006]
[1767512713539,0.00038989,91442.0,91441.0,0.05468006]
[1767512714932,0.000999,91441.0,91439.0,0.06561721]
[1767512715259,0.00999999,91439.0,91437.0,0.00048307]
[1767512715462,0.00999999,91439.0,91437.0,0.05516494]
[1767512716015,0.00999999,91439.0,91437.0,0.00048307]
[1767512716242,0.00051593,91437.0,91436.0,0.06561966]
[1767512716603,0.00999999,91439.0,91437.0,0.05468233]
[1767512717453,0.00999999,91439.0,91437.0,0.05416633]
[1767512717877,0.00999999,91439.0,91438.0,0.05468186]
[1767512718235,0.00999999,91439.0,91437.0,0.05416633]
[1767512718435,0.00999999,91439.0,91438.0,0.05468186]
[1767512718959,0.00999999,91439.0,91438.0,0.0546379]
[1767512719837,0.00087295,91442.0,91439.0,0.01093625]
[1767512720773,0.00087295,91442.0,91438.0,0.06557427]
[1767512720977,0.00999999,91438.0,91435.0,0.01093673]
[1767512721190,0.00999999,91438.0,91433.0,0.01093697]
[1767512721389,0.00999999,91438.0,91435.0,0.05468309]
[1767512721588,0.00999999,91438.0,91436.0,0.0546827]
[1767512721794,0.00999999,91438.0,91435.0,0.06562002]
[1767512722001,0.00999999,91438.0,91434.0,0.01108885]
[1767512722347,0.00999999,91438.0,91435.0,0.01093673]
[1767512722468,0.07561827,91438.0,91434.0,0.01108885]
[1767512722669,0.00999999,91438.0,91435.0,0.06562038]
[1767512723381,0.00999999,91438.0,91435.0,0.01093673]
[1767512723598,0.00999999,91438.0,91435.0,0.06562029]
[1767512723798,0.00999999,91438.0,91436.0,0.05468267]
[1767512724159,0.00999999,91438.0,91437.0,0.05468245]
[1767512724361,0.00999999,91438.0,91436.0,0.05468267]
[1767512724645,0.00999999,91438.0,91437.0,0.05468245]
[1767512725229,0.00899999,91438.0,91436.0,0.05468267]
[1767512725396,0.0470244,91437.0,91435.0,0.01884787]
[1767512725598,0.0460254,91437.0,91436.0,0.0546825]
[1767512725930,0.00899999,91438.0,91436.0,0.0546825]
[1767512726124,0.00087295,91442.0,91437.0,0.01093649]
[1767512726527,0.01180884,91442.0,91437.0,0.01093649]
[1767512726830,0.01180884,91442.0,91438.0,0.05468186]
[1767512727031,0.06648842,91442.0,91438.0,0.01093637]
[1767512727381,0.00087295,91442.0,91439.0,0.01093625]
[1767512727571,0.00087295,91442.0,91439.0,0.01011344]
[1767512727770,0.00899998,91439.0,91438.0,0.01093637]
[1767512727978,0.00800098,91439.0,91438.0,0.06561823]
[1767512728207,0.00800098,91439.0,91438.0,0.05468186]
[1767512728412,0.00087295,91442.0,91439.0,0.0656173]
[1767512728937,0.00087295,91442.0,91439.0,0.06561703]
[1767512729312,0.05468233,91438.0,91433.0,0.00934807]
[1767512729455,0.01193525,91439.0,91433.0,0.00934807]
[1767512729656,0.05468189,91438.0,91434.0,0.01093685]
[1767512729851,0.05468189,91438.0,91427.0,0.21875197]
[1767512729852,0.01093864,91419.0,91417.0,0.04865653]
[1767512730053,0.01093828,91422.0,91414.0,0.06563502]
[1767512730054,0.06360099,91418.0,91414.0,0.06563502]
[1767512730254,0.05468957,91427.0,91419.0,0.01093864]
[1767512730505,0.0765378,91426.0,91421.0,0.06084684]
[1767512730685,0.0656,91426.0,91422.0,0.01093828]
[1767512731055,0.0656,91426.0,91423.0,0.06562899]
[1767512731275,0.0656,91426.0,91423.0,0.01093816]
[1767512731607,0.0765378,91426.0,91422.0,0.06562931]
[1767512731792,0.0656,91426.0,91422.0,0.01093828]
[1767512732186,0.0765378,91426.0,91422.0,0.06562958]
[1767512732571,0.01093517,91448.0,91437.0,0.05773115]
[1767512732772,0.01093493,91450.0,91446.0,0.01093541]
[1767512733010,0.01093457,91453.0,91446.0,0.01093541]
[1767512733011,0.0656,91449.0,91446.0,0.06316265]
[1767512733258,0.05378581,91448.0,91446.0,0.01093541]
[1767512733522,0.05368581,91448.0,91446.0,0.05466761]
[1767512734023,0.11394733,91447.0,91446.0,0.01093541]
[1767512734323,0.11394733,91447.0,91445.0,0.06561314]
[1767512735676,0.11394733,91447.0,91446.0,0.05467707]
[1767512736469,0.04834733,91454.0,91451.0,0.01093481]
[1767512736797,0.0656,91453.0,91451.0,0.06560883]
[1767512737000,0.0656,91453.0,91452.0,0.05467348]
[1767512737144,0.11394733,91453.0,91451.0,0.06556386]
[1767512737346,0.010999,91451.0,91449.0,0.01093505]
[1767512737562,0.05934633,91451.0,91449.0,0.06560978]
[1767512737877,0.04834733,91451.0,91449.0,0.06560978]
[1767512738077,0.04834733,91451.0,91450.0,0.05467468]
[1767512738312,0.04834733,91451.0,91449.0,0.06560978]
[1767512738922,0.02188,91450.0,91449.0,0.06560978]
[1767512739123,0.04834733,91451.0,91450.0,0.05467468]
[1767512739316,0.07022733,91451.0,91450.0,0.05467468]
[1767512739804,0.11394733,91451.0,91450.0,0.05467468]
[1767512740695,0.04834733,91453.0,91450.0,0.06560961]
[1767512740922,0.0656,91452.0,91451.0,0.03279379]
[1767512741197,0.04834733,91453.0,91452.0,0.05467348]
[1767512741398,0.11394733,91453.0,91452.0,0.05367448]
[1767512741971,0.11394733,91453.0,91451.0,0.03279379]
[1767512742810,0.01,91451.0,91450.0,0.01093493]
[1767512743008,0.009001,91451.0,91450.0,0.06560961]
[1767512743208,0.0656,91451.0,91450.0,0.06560961]
[1767512743789,0.04834733,91456.0,91453.0,0.06551714]
[1767512743993,0.0656,91455.0,91453.0,0.06451694]
[1767512744189,0.01093398,91458.0,91454.0,0.01093445]
[1767512744416,0.0656,91457.0,91455.0,0.000999]
[1767512744618,0.04834733,91456.0,91453.0,0.05467255]
[1767512745218,0.04834733,91456.0,91453.0,0.01093457]
[1767512745636,0.0656,91455.0,91454.0,0.01093445]
[1767512745838,0.0656,91455.0,91454.0,0.0656063]
[1767512746019,0.065604,91458.0,91454.0,0.01093445]
[1767512746219,0.009001,91454.0,91452.0,0.06560811]
[1767512746428,0.06560118,91462.0,91457.0,0.0656043]
[1767512746750,0.02188,91461.0,91458.0,0.01038656]
[1767512746897,0.02188,91461.0,91455.0,0.05467163]
[1767512746898,0.06560276,91460.0,91455.0,0.05467163]
[1767512747104,0.03281362,91461.0,91457.0,0.0109341]
[1767512747865,0.02188,91461.0,91458.0,0.06560388]
[1767512749434,0.06560294,91460.0,91456.0,0.01093421]
[1767512749623,0.0874819,91461.0,91456.0,0.01093421]
[1767512750132,0.06560246,91460.0,91456.0,0.06560524]
[1767512750291,0.06560336,91459.0,91455.0,0.06560553]
[1767512750493,0.01093386,91459.0,91455.0,0.06560553]
[1767512750824,0.06560369,91459.0,91455.0,0.01093433]
[1767512751581,0.01093386,91459.0,91455.0,0.06560597]
[1767512751961,0.08748189,91461.0,91456.0,0.0656053]
[1767512752138,0.06560284,91460.0,91455.0,0.01093433]
[1767512752318,0.01093374,91460.0,91456.0,0.01093421]
[1767512752546,0.01093374,91460.0,91456.0,0.0656053]
[1767512752902,0.06560258,91460.0,91456.0,0.0656053]
[1767512753108,0.06560258,91460.0,91456.0,0.01093421]
[1767512753616,0.06560254,91460.0,91455.0,0.01093433]
[1767512753819,0.06560254,91460.0,91455.0,0.06560578]
[1767512754005,0.06560254,91460.0,91456.0,0.11249992]
[1767512754204,0.01560254,91460.0,91457.0,0.04689469]
[1767512754391,0.06560254,91460.0,91457.0,0.04689469]
[1767512754594,0.05466763,91462.0,91460.0,0.010999]
[1767512754839,0.01093386,91459.0,91456.0,0.01093421]
[1767512755139,0.05467057,91457.0,91453.0,0.05467289]
[1767512755338,0.0546699,91458.0,91452.0,0.04689469]
[1767512755544,0.0546704,91458.0,91454.0,0.04689469]
[1767512755701,0.05467135,91456.0,91454.0,0.04689469]
[1767512756743,0.05467165,91456.0,91454.0,0.04689469]
[1767512756943,0.06560517,91457.0,91454.0,0.04689469]
[1767512757106,0.05467002,91458.0,91457.0,0.01]
[1767512757625,0.05467002,91458.0,91454.0,0.05782914]
[1767512757626,0.06560506,91457.0,91454.0,0.04689469]
[1767512758633,0.01093398,91458.0,91457.0,0.010999]
[1767512758838,0.01093398,91458.0,91457.0,0.000999]
[1767512759039,0.06560388,91458.0,91457.0,0.000999]
[1767512759245,0.05467166,91456.0,91452.0,0.04692716]
[1767512759556,0.06560587,91456.0,91452.0,0.05786185]
[1767512759720,0.01093421,91456.0,91453.0,0.04689469]
[1767512759921,0.06560535,91456.0,91453.0,0.05782926]
[1767512760317,0.06560616,91455.0,91452.0,3.247e-05]
[1767512760518,0.02188,91454.0,91452.0,3.247e-05]
[1767512760923,0.02188,91454.0,91452.0,0.04511748]
[1767512761551,0.02188,91454.0,91452.0,0.09979087]
[1767512761756,0.02188,91454.0,91453.0,0.04508501]
[1767512761920,0.00662521,91454.0,91453.0,0.0997579]
[1767512763356,0.00662521,91454.0,91453.0,0.04508501]
[1767512763630,0.00662521,91454.0,91453.0,0.04408601]
[1767512763847,0.00662521,91454.0,91453.0,0.0987589]
[1767512764759,0.00662521,91454.0,91453.0,0.04408601]
[1767512765139,0.00662521,91454.0,91452.0,3.247e-05]
[1767512765339,0.00662521,91454.0,91452.0,0.04511748]
[1767512765747,0.00662521,91454.0,91452.0,0.09979051]
[1767512766363,0.00662521,91454.0,91453.0,0.05467289]
[1767512766831,0.00662521,91454.0,91452.0,0.0547055]
[1767512767082,0.00662521,91454.0,91453.0,0.05467289]
[1767512767308,0.00662521,91454.0,91452.0,0.0547055]
[1767512767521,0.00662521,91454.0,91453.0,0.05467289]
[1767512767723,0.00662521,91454.0,91452.0,0.0547055]
[1767512767923,0.00662521,91454.0,91452.0,3.247e-05]
[1767512768624,0.00662521,91454.0,91452.0,0.0547054]
[1767512768826,0.00662521,91454.0,91453.0,0.05467289]
[1767512768977,0.00662521,91454.0,91452.0,0.05470551]
[1767512769388,0.00662521,91454.0,91453.0,0.05467289]
[1767512773304,0.00662521,91454.0,91452.0,3.247e-05]
[1767512773551,0.00662521,91454.0,91453.0,0.05467289]
[1767512773836,0.00662521,91454.0,91452.0,3.247e-05]
[1767512774104,0.00662521,91454.0,91452.0,0.05470586]
[1767512774271,0.00662521,91454.0,91452.0,3.247e-05]
[1767512775137,0.00662521,91454.0,91452.0,0.05470566]
[1767512775342,0.00662521,91454.0,91453.0,0.05467289]
[1767512775929,0.00662521,91454.0,91452.0,0.05470566]
[1767512776332,0.00662521,91454.0,91453.0,0.05467289]
[1767512778083,0.00189796,91454.0,91453.0,0.05467289]
[1767512778309,0.00017599,91454.0,91453.0,0.05467289]
[1767512779473,1e-08,91454.0,91453.0,0.05467289]
[1767512779668,1e-08,91454.0,91453.0,0.0997579]
[1767512780439,0.01093302,91466.0,91461.0,0.01093362]
[1767512780640,0.12026573,91465.0,91461.0,0.06560128]
[1767512780798,0.0656,91465.0,91462.0,0.01083347]
[1767512781001,0.07653314,91465.0,91462.0,0.01083347]
[1767512781203,0.13119912,91465.0,91462.0,0.01083347]
[1767512781404,0.13119912,91465.0,91462.0,0.06550082]
[1767512782012,0.13119912,91465.0,91461.0,0.06560063]
[1767512783104,0.06559969,91464.0,91460.0,0.06560212]
[1767512783840,0.0656,91465.0,91462.0,0.05466703]
[1767512784236,0.12017801,91465.0,91462.0,0.05466703]
[1767512784578,0.06551207,91465.0,91462.0,0.05466703]
[1767512784915,0.06551207,91465.0,91462.0,0.06560053]
[1767512785120,0.06551207,91465.0,91462.0,0.0109335]
[1767512785503,0.120178,91465.0,91462.0,0.0109335]
[1767512785740,0.13111114,91465.0,91461.0,0.01093362]
[1767512786142,0.05466679,91464.0,91460.0,0.06560241]